fUSD/lending_fUSD_20250107
["ID","MTS","AMOUNT","RATE_DAILY","PERIOD"]
[347995040,1736262665518,-150.0,0.00011041,2]
[347995042,1736262665529,-150.0,0.00011041,2]
[347995043,1736262665540,-2524.39,0.0001106,2]
[347995045,1736262665552,-1913.75,0.0001106,2]
[347995047,1736262665564,-1640.33,0.0001106,2]
[347995049,1736262665581,-5646.88,0.0001106,2]
[347995051,1736262665593,-3766.32,0.0001106,2]
[347995053,1736262665604,-9218.37,0.0001106,2]
[347995055,1736262665615,-4993.43,0.0001106,2]
[347995057,1736262665626,-500.0,0.0001106,2]
[347995058,1736262665637,-1147.2,0.0001106,2]
[347995060,1736262665648,-3138.89,0.0001106,2]
[347995061,1736262665658,-7297.15,0.0001106,2]
[347995062,1736262665670,-1967.75,0.0001106,2]
[347995063,1736262665681,-1885.76,0.0001106,2]
[347995064,1736262665692,-862.95,0.0001106,2]
[347995065,1736262665704,-6308.87,0.0001106,2]
[347995066,1736262665715,-3655.87,0.0001106,2]
[347995067,1736262665725,-500.0,0.0001106,2]
[347995068,1736262665737,-529.64,0.0001106,2]
[347995069,1736262665923,-3564.03,0.0001106,2]
[347995070,1736262665935,-884.02,0.0001106,2]
[347995071,1736262665945,-2502.01,0.0001106,2]
[347995072,1736262665955,-771.61,0.0001106,2]
[347995073,1736262665965,-500.0,0.00011061,2]
[347995074,1736262665975,-2117.31,0.00011061,2]
[347995075,1736262665986,-1640.34,0.00011061,2]
[347995076,1736262665996,-848.9,0.00011061,2]
[347995077,1736262666008,-516.31,0.00011061,2]
[347995078,1736262666018,-500.0,0.00011061,2]
[347995079,1736262666030,-890.07,0.00011061,2]
[347995080,1736262666040,-553.96,0.00011061,2]
[347995081,1736262666051,-500.0,0.00011061,2]
[347995082,1736262666062,-1968.29,0.00011061,2]
[347995083,1736262666078,-161.82718008,0.00011061,2]
[347995084,1736262666089,-500.0,0.00011061,2]
[347995085,1736262666100,-2031.5,0.00011061,2]
[347995086,1736262666110,-815.38,0.00011061,2]
[347995087,1736262666121,-755.1,0.00011061,2]
[347995088,1736262666132,-387.31417609,0.00011061,2]
[347995089,1736262666144,-1407.37,0.00011061,2]
[347995090,1736262666156,-500.0,0.00011061,2]
[347995091,1736262666168,-941.38,0.00011061,2]
[347995092,1736262666179,-550.5538584,0.00011061,2]
[347995093,1736262666190,-639.93,0.00011061,2]
[347995094,1736262666201,-922.69,0.00011061,2]
[347995095,1736262666212,-560.94,0.00011061,2]
[347995096,1736262666223,-500.0,0.00011061,2]
[347995097,1736262666234,-511.72653024,0.00011061,2]
[347995098,1736262666245,-569.19,0.00011061,2]
[347995099,1736262666257,-590.44,0.00011061,2]
[347995100,1736262666269,-763.06,0.00011061,2]
[347995101,1736262666280,-1409.42,0.00011061,2]
[347995102,1736262666292,-500.0,0.00011061,2]
[347995103,1736262666302,-544.01,0.00011061,2]
[347995104,1736262666313,-942.94,0.00011061,2]
[347995105,1736262666327,-500.0,0.00011061,2]
[347995106,1736262666337,-500.0,0.00011061,2]
[347995107,1736262666348,-500.0,0.00011061,2]
[347995108,1736262666359,-562.09,0.00011061,2]
[347995109,1736262666370,-1099.11,0.00011061,2]
[347995110,1736262666380,-582.68,0.00011061,2]
[347995111,1736262666391,-1458.4,0.00011061,2]
[347995112,1736262666401,-910.45,0.00011061,2]
[347995113,1736262666411,-1615.76,0.00011061,2]
[347995114,1736262666421,-924.05,0.00011061,2]
[347995115,1736262666431,-1168.85,0.00011061,2]
[347995116,1736262666441,-500.0,0.00011061,2]
[347995117,1736262666452,-1062.63,0.00011061,2]
[347995118,1736262666462,-500.0,0.00011061,2]
[347995119,1736262666473,-1426.18,0.00011061,2]
[347995120,1736262666483,-1649.02,0.00011061,2]
[347995121,1736262666494,-520.91,0.00011061,2]
[347995122,1736262666505,-500.0,0.00011061,2]
[347995123,1736262666517,-500.0,0.00011061,2]
[347995124,1736262666527,-926.0,0.00011061,2]
[347995125,1736262666538,-535.94,0.00011061,2]
[347995126,1736262666549,-500.0,0.00011061,2]
[347995127,1736262666559,-725.21,0.00011061,2]
[347995128,1736262666573,-500.0,0.00011061,2]
[347995129,1736262666584,-500.0,0.00011061,2]
[347995130,1736262666595,-1644.77,0.00011061,2]
[347995131,1736262666607,-1064.43,0.00011061,2]
[347995132,1736262666617,-500.0,0.00011061,2]
[347995133,1736262666627,-718.87,0.00011061,2]
[347995134,1736262666638,-500.0,0.00011061,2]
[347995135,1736262666647,-1075.72,0.00011061,2]
[347995136,1736262666658,-179.98,0.00011061,2]
[347995137,1736262666668,-564.1,0.00011061,2]
[347995138,1736262666678,-500.0,0.00011061,2]
[347995139,1736262666689,-618.25,0.00011061,2]
[347995140,1736262666699,-683.56,0.00011061,2]
[347995141,1736262666709,-500.0,0.00011061,2]
[347995142,1736262666720,-1339.73,0.00011061,2]
[347995143,1736262666730,-849.57,0.00011061,2]
[347995144,1736262666740,-500.0,0.00011061,2]
[347995145,1736262666750,-500.0,0.00011061,2]
[347995146,1736262666759,-165.13067961,0.00011061,2]
[347995147,1736262666773,-872.25,0.00011061,2]
[347995148,1736262666783,-639.01,0.00011061,2]
[347995149,1736262666792,-895.49,0.00011061,2]
[347995150,1736262666802,-801.58,0.00011061,2]
[347995151,1736262666812,-1413.01,0.00011061,2]
[347995152,1736262666829,-1588.41,0.00011061,2]
[347995153,1736262666844,-1647.51,0.00011061,2]
[347995154,1736262666855,-500.0,0.00011061,2]
[347995155,1736262666866,-586.67,0.00011061,2]
[347995156,1736262666878,-500.0,0.00011061,2]
[347995157,1736262666888,-1565.49,0.00011061,2]
[347995158,1736262666899,-500.0,0.00011061,2]
[347995159,1736262666911,-1101.5,0.00011061,2]
[347995160,1736262666921,-662.35,0.00011061,2]
[347995161,1736262666931,-500.0,0.00011061,2]
[347995162,1736262666942,-500.0,0.00011061,2]
[347995163,1736262666952,-500.0,0.00011061,2]
[347995164,1736262666963,-783.84,0.00011061,2]
[347995165,1736262666974,-735.55,0.00011061,2]
[347995166,1736262666984,-500.0,0.00011061,2]
[347995167,1736262666995,-500.0,0.00011061,2]
[347995168,1736262667006,-704.7,0.00011061,2]
[347995169,1736262667017,-500.0,0.00011061,2]
[347995170,1736262667028,-645.492016,0.00011061,2]
[347995171,1736262667040,-786.86,0.00011061,2]
[347995172,1736262667051,-1308.72,0.00011061,2]
[347995173,1736262667063,-2312.12,0.00011061,2]
[347995174,1736262667084,-500.0,0.00011061,2]
[347995175,1736262667096,-558.3,0.00011061,2]
[347995176,1736262667107,-706.01,0.00011061,2]
[347995177,1736262667118,-500.0,0.00011061,2]
[347995178,1736262667129,-500.0,0.00011061,2]
[347995179,1736262667141,-500.0,0.00011061,2]
[347995180,1736262667152,-516.04,0.00011061,2]
[347995181,1736262667163,-811.47,0.00011061,2]
[347995182,1736262667174,-511.46,0.00011061,2]
[347995183,1736262667187,-500.0,0.00011061,2]
[347995184,1736262667198,-865.69,0.00011061,2]
[347995185,1736262667209,-500.0,0.00011061,2]
[347995186,1736262667219,-500.0,0.00011061,2]
[347995187,1736262667230,-677.006499,0.00011061,2]
[347995188,1736262667241,-500.0,0.00011061,2]
[347995189,1736262667252,-801.01,0.00011061,2]
[347995190,1736262667262,-510.8,0.00011061,2]
[347995191,1736262667273,-690.28,0.00011061,2]
[347995192,1736262667285,-961.28,0.00011061,2]
[347995193,1736262667296,-1877.25,0.00011061,2]
[347995194,1736262667306,-500.0,0.00011061,2]
[347995195,1736262667323,-564.06,0.00011061,2]
[347995196,1736262667335,-717.82,0.00011061,2]
[347995197,1736262667345,-500.0,0.00011061,2]
[347995198,1736262667357,-648.62,0.00011061,2]
[347995199,1736262667367,-6268.49,0.00011061,2]
[347995200,1736262667378,-934.29,0.00011061,2]
[347995201,1736262667390,-816.82,0.00011061,2]
[347995202,1736262667401,-876.26,0.00011061,2]
[347995203,1736262667412,-500.0,0.00011061,2]
[347995204,1736262667423,-710.35,0.00011061,2]
[347995205,1736262667434,-357.47,0.00011061,2]
[347995206,1736262667445,-500.0,0.00011061,2]
[347995207,1736262667455,-500.0,0.00011061,2]
[347995208,1736262667466,-729.98,0.00011061,2]
[347995209,1736262667477,-500.0,0.00011061,2]
[347995210,1736262667489,-1400.56,0.00011061,2]
[347995211,1736262667500,-1830.12,0.00011061,2]
[347995212,1736262667512,-500.0,0.00011061,2]
[347995213,1736262667523,-2212.76,0.00011061,2]
[347995214,1736262667534,-744.63,0.00011061,2]
[347995215,1736262667545,-652.37,0.00011061,2]
[347995216,1736262667557,-534.71,0.00011061,2]
[347995217,1736262667568,-500.0,0.00011061,2]
[347995218,1736262667591,-2286.31,0.00011061,2]
[347995219,1736262667601,-518.3,0.00011061,2]
[347995220,1736262667612,-1914.85,0.00011061,2]
[347995221,1736262667623,-500.0,0.00011061,2]
[347995222,1736262667634,-646.22,0.00011061,2]
[347995223,1736262667645,-500.0,0.00011061,2]
[347995224,1736262667656,-500.0,0.00011061,2]
[347995225,1736262667666,-982.11,0.00011061,2]
[347995226,1736262667677,-1623.91,0.00011061,2]
[347995227,1736262667688,-500.0,0.00011061,2]
[347995228,1736262667699,-500.0,0.00011061,2]
[347995229,1736262667711,-996.79,0.00011061,2]
[347995230,1736262667721,-1471.95,0.00011061,2]
[347995231,1736262667732,-901.87,0.00011061,2]
[347995232,1736262667742,-500.0,0.00011061,2]
[347995233,1736262667752,-1372.49,0.00011061,2]
[347995234,1736262667763,-1464.12,0.00011061,2]
[347995235,1736262667774,-504.47,0.00011061,2]
[347995236,1736262667784,-500.0,0.00011061,2]
[347995237,1736262667795,-595.29,0.00011061,2]
[347995238,1736262667806,-500.0,0.00011061,2]
[347995239,1736262667816,-626.19,0.00011061,2]
[347995240,1736262667840,-827.13,0.00011061,2]
[347995241,1736262667853,-1176.78,0.00011061,2]
[347995242,1736262667864,-596.4,0.00011061,2]
[347995243,1736262667876,-500.0,0.00011061,2]
[347995244,1736262667888,-500.0,0.00011061,2]
[347995245,1736262667898,-554.87,0.00011061,2]
[347995246,1736262667911,-632.63,0.00011061,2]
[347995247,1736262667922,-2207.57,0.00011061,2]
[347995248,1736262667933,-500.0,0.00011061,2]
[347995249,1736262667944,-1314.45,0.00011061,2]
[347995250,1736262667955,-1480.19,0.00011061,2]
[347995251,1736262667966,-1711.51,0.00011061,2]
[347995252,1736262667977,-500.0,0.00011061,2]
[347995253,1736262667988,-520.85,0.00011061,2]
[347995254,1736262667998,-958.66,0.00011061,2]
[347995255,1736262668009,-500.0,0.00011061,2]
[347995256,1736262668019,-1152.24,0.00011061,2]
[347995257,1736262668030,-1150.08,0.00011061,2]
[347995258,1736262668041,-1378.33,0.00011061,2]
[347995259,1736262668051,-666.68,0.00011061,2]
[347995260,1736262668061,-500.0,0.00011061,2]
[347995261,1736262668077,-500.0,0.00011061,2]
[347995262,1736262668089,-774.79,0.00011061,2]
[347995263,1736262668102,-4038.52,0.00011061,2]
[347995264,1736262668113,-4763.71,0.00011061,2]
[347995265,1736262668125,-563.38,0.00011061,2]
[347995266,1736262668136,-811.99,0.00011061,2]
[347995267,1736262668147,-936.82,0.00011061,2]
[347995268,1736262668159,-513.8,0.00011061,2]
[347995269,1736262668171,-842.07,0.00011061,2]
[347995270,1736262668182,-694.17,0.00011061,2]
[347995271,1736262668193,-1049.81,0.00011061,2]
[347995272,1736262668205,-500.0,0.00011061,2]
[347995273,1736262668217,-589.08,0.00011061,2]
[347995274,1736262668228,-567.97,0.00011061,2]
[347995275,1736262668238,-505.05,0.00011061,2]
[347995276,1736262668249,-1866.33,0.00011061,2]
[347995277,1736262668261,-738.58,0.00011061,2]
[347995278,1736262668271,-819.88,0.00011061,2]
[347995279,1736262668282,-530.13,0.00011061,2]
[347995280,1736262668293,-500.0,0.00011061,2]
[347995281,1736262668303,-1830.99,0.00011061,2]
[347995282,1736262668314,-5830.07,0.00011061,2]
[347995283,1736262668331,-647.88,0.00011061,2]
[347995284,1736262668342,-2668.27,0.00011061,2]
[347995285,1736262668352,-500.0,0.00011061,2]
[347995286,1736262668363,-500.0,0.00011061,2]
[347995287,1736262668375,-500.0,0.00011061,2]
[347995288,1736262668386,-851.11,0.00011061,2]
[347995289,1736262668397,-600.72,0.00011061,2]
[347995290,1736262668407,-3026.13,0.00011061,2]
[347995291,1736262668417,-7203.94,0.00011061,2]
[347995292,1736262668427,-542.15,0.00011061,2]
[347995293,1736262668437,-500.0,0.00011061,2]
[347995294,1736262668447,-567.01,0.00011061,2]
[347995295,1736262668457,-6045.92,0.00011061,2]
[347995296,1736262668467,-500.0,0.00011061,2]
[347995297,1736262668478,-500.0,0.00011061,2]
[347995298,1736262668489,-16774.32,0.00011061,2]
[347995299,1736262668499,-751.05,0.00011061,2]
[347995300,1736262668510,-500.0,0.00011061,2]
[347995301,1736262668520,-1425.12,0.00011061,2]
[347995302,1736262668530,-500.0,0.00011061,2]
[347995303,1736262668540,-500.0,0.00011061,2]
[347995304,1736262668550,-2154.91,0.00011061,2]
[347995305,1736262668560,-500.0,0.00011061,2]
[347995306,1736262668576,-500.0,0.00011061,2]
[347995307,1736262668739,-1807.01,0.00011061,2]
[347995308,1736262668763,-624.54,0.00011061,2]
[347995309,1736262668773,-1865.17,0.00011061,2]
[347995310,1736262668783,-797.28,0.00011061,2]
[347995311,1736262668793,-512.91,0.00011061,2]
[347995312,1736262668803,-1595.23,0.00011061,2]
[347995313,1736262668813,-500.0,0.00011061,2]
[347995314,1736262668828,-960.45,0.00011061,2]
[347995315,1736262668841,-500.0,0.00011061,2]
[347995316,1736262668851,-1419.76,0.00011061,2]
[347995317,1736262668861,-823.76,0.00011061,2]
[347995318,1736262668871,-402.74108208,0.00011061,2]
[347995319,1736262668882,-2796.77,0.00011061,2]
[347995320,1736262668893,-500.0,0.00011061,2]
[347995321,1736262668902,-517.0,0.00011061,2]
[347995322,1736262668913,-970.76,0.00011061,2]
[347995323,1736262668923,-500.0,0.00011061,2]
[347995324,1736262668933,-559.9,0.00011061,2]
[347995325,1736262668943,-500.0,0.00011061,2]
[347995326,1736262668953,-607.55,0.00011061,2]
[347995327,1736262668963,-1299.79,0.00011061,2]
[347995328,1736262668974,-500.0,0.00011061,2]
[347995329,1736262668984,-500.0,0.00011061,2]
[347995330,1736262668994,-881.28,0.00011061,2]
[347995331,1736262669004,-1569.73,0.00011061,2]
[347995332,1736262669014,-4772.5,0.00011061,2]
[347995333,1736262669024,-687.73,0.00011061,2]
[347995334,1736262669034,-500.0,0.00011061,2]
[347995335,1736262669044,-626.41,0.00011061,2]
[347995336,1736262669054,-1182.71,0.00011061,2]
[347995337,1736262669064,-1601.07,0.00011061,2]
[347995338,1736262669081,-1158.09,0.00011061,2]
[347995339,1736262669092,-500.0,0.00011061,2]
[347995340,1736262669103,-1676.54,0.00011061,2]
[347995341,1736262669114,-684.59,0.00011061,2]
[347995342,1736262669124,-1032.32,0.00011061,2]
[347995343,1736262669135,-3545.71,0.00011061,2]
[347995344,1736262669145,-1529.31,0.00011061,2]
[347995345,1736262669155,-644.33,0.00011061,2]
[347995346,1736262669165,-967.44,0.00011061,2]
[347995347,1736262669176,-2003.24,0.00011061,2]
[347995348,1736262669186,-1128.03,0.00011061,2]
[347995349,1736262669196,-919.47,0.00011061,2]
[347995350,1736262669207,-500.0,0.00011061,2]
[347995351,1736262669217,-500.0,0.00011061,2]
[347995352,1736262669227,-9398.38,0.00011061,2]
[347995353,1736262669237,-500.0,0.00011061,2]
[347995354,1736262669246,-2716.37,0.00011061,2]
[347995355,1736262669256,-1331.76,0.00011061,2]
[347995356,1736262669267,-500.0,0.00011061,2]
[347995357,1736262669277,-500.0,0.00011061,2]
[347995358,1736262669287,-623.8,0.00011061,2]
[347995359,1736262669297,-1298.0,0.00011061,2]
[347995360,1736262669307,-500.0,0.00011061,2]
[347995361,1736262669317,-500.0,0.00011062,2]
[347995362,1736262669333,-537.9,0.00011062,2]
[347995363,1736262669343,-500.0,0.00011062,2]
[347995364,1736262669353,-500.0,0.00011062,2]
[347995365,1736262669363,-500.0,0.00011062,2]
[347995366,1736262669373,-901.06,0.00011062,2]
[347995367,1736262669383,-500.0,0.00011062,2]
[347995368,1736262669393,-652.56,0.00011062,2]
[347995369,1736262669403,-824.46,0.00011062,2]
[347995370,1736262669413,-500.0,0.00011062,2]
[347995371,1736262669422,-500.0,0.00011062,2]
[347995372,1736262669433,-500.0,0.00011062,2]
[347995373,1736262669443,-507.2859743,0.00011062,2]
[347995374,1736262669454,-500.0,0.00011062,2]
[347995375,1736262669464,-500.0,0.00011062,2]
[347995376,1736262669476,-500.0,0.00011062,2]
[347995377,1736262669488,-500.0,0.00011062,2]
[347995378,1736262669499,-500.0,0.00011062,2]
[347995379,1736262669510,-500.0,0.00011062,2]
[347995380,1736262669520,-604.2,0.00011062,2]
[347995381,1736262669531,-500.0,0.00011062,2]
[347995382,1736262669541,-500.0,0.00011062,2]
[347995383,1736262669550,-500.0,0.00011062,2]
[347995384,1736262669560,-500.0,0.00011062,2]
[347995385,1736262669576,-500.0,0.00011062,2]
[347995386,1736262669585,-500.0,0.00011062,2]
[347995387,1736262669595,-578.14,0.00011062,2]
[347995388,1736262669606,-940.14,0.00011062,2]
[347995389,1736262669617,-500.0,0.00011062,2]
[347995390,1736262669627,-500.0,0.00011062,2]
[347995391,1736262669637,-501.04,0.00011062,2]
[347995392,1736262669647,-500.0,0.00011062,2]
[347995393,1736262669657,-500.0,0.00011062,2]
[347995394,1736262669668,-505.89,0.00011062,2]
[347995395,1736262669678,-500.0,0.00011062,2]
[347995396,1736262669688,-500.0,0.00011062,2]
[347995397,1736262669698,-500.0,0.00011062,2]
[347995398,1736262669708,-500.0,0.00011062,2]
[347995399,1736262669718,-500.0,0.00011062,2]
[347995400,1736262669728,-736.32,0.00011062,2]
[347995401,1736262669739,-552.87,0.00011062,2]
[347995402,1736262669749,-500.0,0.00011062,2]
[347995403,1736262669758,-500.0,0.00011062,2]
[347995404,1736262669769,-500.0,0.00011062,2]
[347995405,1736262669778,-500.0,0.00011062,2]
[347995406,1736262669788,-505.07,0.00011062,2]
[347995407,1736262669799,-500.0,0.00011062,2]
[347995408,1736262669809,-500.0,0.00011062,2]
[347995409,1736262669823,-500.0,0.00011062,2]
[347995410,1736262669834,-500.0,0.00011062,2]
[347995411,1736262669847,-500.0,0.00011062,2]
[347995412,1736262669857,-500.0,0.00011062,2]
[347995413,1736262669868,-500.0,0.00011062,2]
[347995414,1736262669891,-500.0,0.00011062,2]
[347995415,1736262669905,-846.86,0.00011062,2]
[347995416,1736262669928,-2061.41,0.00011062,2]
[347995417,1736262669949,-500.0,0.00011062,2]
[347995418,1736262669970,-682.55,0.00011062,2]
[347995419,1736262669992,-500.0,0.00011062,2]
[347995420,1736262670009,-500.0,0.00011062,2]
[347995421,1736262670029,-500.0,0.00011062,2]
[347995422,1736262670048,-646.70577852,0.00011062,2]
[347995423,1736262670067,-500.0,0.00011062,2]
[347995424,1736262670092,-683.77,0.00011062,2]
[347995425,1736262670110,-500.0,0.00011062,2]
[347995426,1736262670131,-500.0,0.00011062,2]
[347995427,1736262670149,-640.2,0.00011062,2]
[347995428,1736262670164,-500.0,0.00011062,2]
[347995429,1736262670183,-534.29,0.00011062,2]
[347995430,1736262670197,-1388.3,0.00011062,2]
[347995431,1736262670214,-1312.22,0.00011062,2]
[347995432,1736262670229,-819.24,0.00011062,2]
[347995433,1736262670246,-4216.35,0.00011062,2]
[347995434,1736262670261,-304.93933523,0.00011062,2]
[347995435,1736262670277,-1928.38,0.00011062,2]
[347995436,1736262670292,-1764.27,0.00011062,2]
[347995437,1736262670308,-500.0,0.00011062,2]
[347995438,1736262670328,-2935.1,0.00011062,2]
[347995439,1736262670344,-500.0,0.00011062,2]
[347995440,1736262670360,-500.0,0.00011062,2]
[347995441,1736262670377,-500.0,0.00011062,2]
[347995442,1736262670393,-500.0,0.00011062,2]
[347995443,1736262670408,-500.0,0.00011062,2]
[347995444,1736262670424,-875.04,0.00011062,2]
[347995445,1736262670445,-800.66,0.00011062,2]
[347995446,1736262670460,-619.1,0.00011062,2]
[347995447,1736262670478,-5574.76,0.00011062,2]
[347995448,1736262670496,-500.0,0.00011062,2]
[347995449,1736262670513,-810.19,0.00011062,2]
[347995450,1736262670531,-500.0,0.00011062,2]
[347995451,1736262670548,-500.0,0.00011062,2]
[347995452,1736262670564,-625.4,0.00011062,2]
[347995453,1736262670588,-5306.22,0.00011062,2]
[347995454,1736262670604,-699.1,0.00011062,2]
[347995455,1736262670620,-500.0,0.00011062,2]
[347995456,1736262670636,-812.45,0.00011062,2]
[347995457,1736262670651,-517.57,0.00011062,2]
[347995458,1736262670667,-532.04,0.00011062,2]
[347995459,1736262670682,-595.89,0.00011062,2]
[347995460,1736262670699,-500.0,0.00011062,2]
[347995461,1736262670713,-500.0,0.00011062,2]
[347995462,1736262670729,-500.0,0.00011062,2]
[347995463,1736262670744,-1416.64,0.00011062,2]
[347995464,1736262670759,-913.13,0.00011062,2]
[347995465,1736262670775,-500.0,0.00011062,2]
[347995466,1736262670790,-982.41,0.00011062,2]
[347995467,1736262670805,-559.24,0.00011062,2]
[347995468,1736262670826,-500.0,0.00011062,2]
[347995469,1736262670844,-504.53,0.00011062,2]
[347995470,1736262670859,-740.91,0.00011062,2]
[347995471,1736262670876,-947.38,0.00011062,2]
[347995472,1736262670891,-3101.3,0.00011062,2]
[347995473,1736262670907,-567.13,0.00011062,2]
[347995474,1736262670924,-500.0,0.00011062,2]
[347995475,1736262670939,-547.23,0.00011062,2]
[347995476,1736262670955,-876.4,0.00011062,2]
[347995477,1736262670971,-500.0,0.00011062,2]
[347995478,1736262670986,-609.66,0.00011062,2]
[347995479,1736262671002,-524.12,0.00011062,2]
[347995480,1736262671018,-504.3,0.00011062,2]
[347995481,1736262671033,-1108.84,0.00011062,2]
[347995482,1736262671048,-500.0,0.00011062,2]
[347995483,1736262671064,-502.70493417,0.00011062,2]
[347995484,1736262671085,-812.27,0.00011062,2]
[347995485,1736262671102,-501.6,0.00011062,2]
[347995486,1736262671119,-500.0,0.00011062,2]
[347995487,1736262671136,-6774.01,0.00011062,2]
[347995488,1736262671150,-500.0,0.00011062,2]
[347995489,1736262671167,-893.01,0.00011062,2]
[347995490,1736262671183,-345.1217678,0.00011062,2]
[347995491,1736262671199,-847.04,0.00011062,2]
[347995492,1736262671215,-500.0,0.00011062,2]
[347995493,1736262671232,-500.0,0.00011062,2]
[347995494,1736262671247,-500.0,0.00011062,2]
[347995495,1736262671264,-500.0,0.00011062,2]
[347995496,1736262671282,-625.57,0.00011062,2]
[347995497,1736262671298,-1097.4,0.00011062,2]
[347995498,1736262671308,-500.0,0.00011062,2]
[347995499,1736262671317,-563.23,0.00011062,2]
[347995500,1736262671330,-615.57,0.00011062,2]
[347995501,1736262671340,-500.0,0.00011062,2]
[347995502,1736262671350,-1408.96,0.00011062,2]
[347995503,1736262671359,-500.0,0.00011062,2]
[347995504,1736262671369,-1021.92,0.00011062,2]
[347995505,1736262671380,-535.29,0.00011062,2]
[347995506,1736262671390,-500.0,0.00011062,2]
[347995507,1736262671401,-588.69,0.00011062,2]
[347995508,1736262671411,-920.61,0.00011062,2]
[347995509,1736262671421,-500.0,0.00011062,2]
[347995510,1736262671431,-1477.09,0.00011062,2]
[347995511,1736262671441,-928.78,0.00011062,2]
[347995512,1736262671451,-611.48,0.00011062,2]
[347995513,1736262671461,-597.33,0.00011062,2]
[347995514,1736262671471,-627.19,0.00011062,2]
[347995515,1736262671483,-500.0,0.00011062,2]
[347995516,1736262671495,-500.0,0.00011062,2]
[347995517,1736262671505,-850.24,0.00011062,2]
[347995518,1736262671516,-500.0,0.00011062,2]
[347995519,1736262671527,-500.0,0.00011062,2]
[347995520,1736262671538,-676.0,0.00011062,2]
[347995521,1736262671548,-500.0,0.00011062,2]
[347995522,1736262671557,-1833.42,0.00011062,2]
[347995523,1736262671566,-500.0,0.00011062,2]
[347995524,1736262671580,-966.83,0.00011062,2]
[347995525,1736262671590,-585.7,0.00011062,2]
[347995526,1736262671600,-2074.96,0.00011062,2]
[347995527,1736262672030,-500.0,0.00011062,2]
[347995528,1736262672051,-518.31,0.00011062,2]
[347995529,1736262672074,-588.31,0.00011062,2]
[347995530,1736262672083,-500.0,0.00011062,2]
[347995531,1736262672093,-1505.25,0.00011062,2]
[347995532,1736262672104,-1855.72,0.00011062,2]
[347995533,1736262672114,-567.53,0.00011062,2]
[347995534,1736262672125,-1936.71,0.00011062,2]
[347995535,1736262672134,-990.5,0.00011062,2]
[347995536,1736262672144,-536.84,0.00011062,2]
[347995537,1736262672154,-500.0,0.00011063,2]
[347995538,1736262672164,-500.0,0.00011063,2]
[347995539,1736262672174,-500.0,0.00011063,2]
[347995540,1736262672184,-500.0,0.00011063,2]
[347995541,1736262672194,-552.75,0.00011063,2]
[347995542,1736262672204,-500.0,0.00011063,2]
[347995543,1736262672214,-166.22396205,0.00011063,2]
[347995544,1736262672224,-500.0,0.00011063,2]
[347995545,1736262672234,-662.78,0.00011063,2]
[347995546,1736262672244,-500.0,0.00011063,2]
[347995547,1736262672254,-500.0,0.00011063,2]
[347995548,1736262672264,-682.01,0.00011063,2]